[Event "26th Womens ECCC 2022"]
[Site "Mayrhofen"]
[Date "2022.10.08"]
[Round "6.11"]
[White "Arakhamia-Grant, Ketevan"]
[Black "Cyfka, Karina"]
[Result "1/2-1/2"]
[ECO "C72"]
[WhiteElo "2333"]
[BlackElo "2347"]
[Annotator "TA"]
[PlyCount "169"]
[EventDate "2022.10.03"]
[EventType "team-tourn"]
[EventCountry "AUT"]
[SourceTitle "playchess.com"]
[Source "ChessBase"]
[SourceQuality "1"]
[TimeControl "40/5400+30:1800+30"]

{[%evp 15,169,37,30,14,26,13,8,13,12,12,25,0,8,0,0,7,9,4,28,27,64,33,72,85,141,144,206,116,122,110,108,107,126,107,117,107,106,101,108,115,113,115,116,105,100,110,115,0,89,0,111,110,110,87,98,60,60,71,62,65,54,20,21,21,40,0,0,4,1,9,33,38,29,31,35,31,41,5,87,83,94,87,89,72,118,127,129,130,118,57,57,64,47,2,116,0,0,0,0,0,0,0,0,0,0,0,12,14,326,60,79,74,93,85,166,29,77,29,81,25,106,4,4,4,6,4,4,4,4,5,5,5,4,0,55,0,0,0,0,0,0,0,8,0,8,0,0,0,8,8,8,8,8,8,8,8]} 1. e4 {[%emt 0:00:02]} e5 {[%emt 0:00:11]} 2. Nf3 {[%emt 0:00:08]} Nc6 {[%emt 0:00:25]} 3. Bb5 {[%emt 0:00:07]} a6 {[%emt 0:00:06]} 4. Ba4 {[%emt 0:00:05]} d6 {[%emt 0:00:25]} 5. O-O {[%emt 0:01:22]} Bd7 {[%emt 0:00:52]} 6. c3 {[%emt 0:01:26]} g6 {[%emt 0:00:59]} 7. d4 {[%emt 0:01:30]} Bg7 {[%emt 0:00:28]} 8. Re1 {[%emt 0:08:25]} Nf6 $1 {[%emt 0:01:55][%cal Bg8f6,Bf6h5,Bh5f4][%mdl 4] is currently scoring better than 8...Nge7.} 9. Bg5 {[%emt 0:14:22] C79: Ruy Lopez: Steinitz-type lines with 3...a6 4 Ba4 Nf6 5 0-0 d6.} b5 {[%emt 0:10:31]} 10. Bb3 {[%emt 0:00:38]} O-O {[%emt 0:00:45]} 11. h3 {[%emt 0:11:56]} h6 {[%emt 0:05:52]} 12. Bh4 {[%emt 0:00:09]} Qe8 {[%emt 0:01:38]} (12... Re8 $5 {[%cal Re5d4]}) 13. Nbd2 {[%emt 0:01:32]} Nh5 {[%emt 0:03:57][%cal Re5d4]} 14. Nf1 {[%emt 0:01:48] [#]} (14. dxe5 {seems wilder.} Nxe5 15. Nxe5 Bxe5 16. Bd5) 14... Na5 $146 {[%emt 0:02:36]} ({Predecessor:} 14... Nf4 15. Ne3 Ne7 16. Bg3 g5 17. h4 g4 18. Nh2 h5 19. f3 gxf3 20. Nxf3 Neg6 {1-0 (32) Jackson,J (2304)-Camp,I (1855) Coventry 2017}) 15. Bc2 {[%emt 0:01:03]} Nc4 {[%emt 0:03:32]} 16. b3 {[%emt 0:03:06]} Nb6 {[%emt 0:04:16]} (16... Na3 $5 {[%cal Ra3c2]}) 17. Ne3 {[%emt 0:07:42]} Nf4 {[%emt 0:07:07]} 18. Bg3 {[%emt 0:07:34]} Nh5 {[%emt 0:07:05]} 19. Bh2 {[%emt 0:02:08]} exd4 {[%emt 0:04:39]} (19... Nf4 $142) 20. cxd4 $16 {[%emt 0:01:07]} (20. Nxd4 $6 Be5 $14) 20... Bc6 {[%emt 0:02:41]} (20... Nf6 $16) 21. Ng4 {[%emt 0:07:06]} (21. e5 $1 $18) 21... Qd8 {[%emt 0:04:12]} 22. Qd2 {[%emt 0:00:39]} Kh7 {[%emt 0:00:50]} 23. Rac1 {[%emt 0:00:32]} Bb7 {[%emt 0:00:59]} 24. d5 {[%emt 0:13:52]} Nd7 {[%emt 0:03:09]} 25. Bb1 {[%emt 0:00:30]} Rc8 {[%emt 0:04:22]} 26. Nd4 {[%emt 0:01:03]} Nhf6 {[%emt 0:05:32]} 27. Nc6 {[%emt 0:03:40] White has more active pieces.} Bxc6 {[%emt 0:02:29]} 28. Nxf6+ {[%emt 0:01:10]} Bxf6 {[%emt 0:04:08]} 29. Rxc6 {[%emt 0:00:53]} Nb8 {[%emt 0:00:06]} 30. Rc2 {[%emt 0:01:02]} Nd7 {[%emt 0:01:03]} 31. Rc6 {[%emt 0:03:46]} Nb8 $1 {[%emt 0:00:05]} 32. Rc2 {[%emt 0:00:13]} Nd7 {[%emt 0:00:41]} 33. Rec1 {[%emt 0:00:19][%cal Oh2d6]} Re8 {[%emt 0:02:35][%cal Bf8e8,Be8e4,Be4d4,Bd4d5][%mdl 32] [#]} 34. Bxd6 $1 {[%emt 0:03:00][%mdl 512]} Rxe4 {[%emt 0:03:37][%cal Oc7c5]} 35. Rxc7 {[%emt 0:00:17]} Rd4 {[%emt 0:01:53]} 36. Qe2 {[%emt 0:02:49]} Rxc7 {[%emt 0:01:38]} 37. Bxc7 {[%emt 0:00:05]} (37. Rxc7 Rxd5 38. Bg3 Rc5 39. Rxc5 Nxc5 $11) 37... Qe7 {[%emt 0:00:12]} 38. Qxe7 {[%emt 0:01:46]} Bxe7 {[%emt 0:00:01]} 39. Ba5 {[%emt 0:00:32]} b4 {[%emt 0:04:12]} 40. g3 {[%emt 0:00:31]} Rxd5 {[%emt 0:01:43]} 41. Bc7 {[%emt 0:03:42]} Bc5 {[%emt 0:09:02]} 42. Bf4 {[%emt 0:02:18] Against Rd2} Nf6 {[%emt 0:06:04] Against Be4} 43. Kf1 {[%emt 0:09:39]} Kg7 {[%emt 0:03:59]} 44. Ke2 {[%emt 0:01:17]} g5 {[%emt 0:00:44]} 45. Bc7 {[%emt 0:02:30]} Bd4 {[%emt 0:05:41]} 46. Rc6 {[%emt 0:01:50]} Bc3 {[%emt 0:00:58]} (46... Ne8 $1 $11) 47. Bd3 $1 {[%emt 0:01:13]} (47. Rxa6 Rd2+ 48. Kf3 Bd4 $15) 47... Rd7 {[%emt 0:06:07]} 48. Bd6 {[%emt 0:00:46]} (48. Bxa6 $6 Rd2+ 49. Kf3 h5 $11) 48... a5 {[%emt 0:00:57]} 49. Ra6 {[%emt 0:05:29]} Rd8 {[%emt 0:05:32]} (49... h5 $142) 50. Bc7 {[%emt 0:01:30]} Re8+ {[%emt 0:00:14]} 51. Kf3 {[%emt 0:00:07]} Re7 {[%emt 0:02:28]} 52. Bd6 {[%emt 0:01:41]} (52. Bb6 $16) 52... Re1 $1 $14 {[%emt 0:00:36]} 53. Bf5 {[%emt 0:03:53] A strong pair of Bishops.} (53. Rxa5 g4+ 54. hxg4 Rd1 $17) 53... Rd1 {[%emt 0:00:29]} 54. Bc7 {[%emt 0:01:04]} Bd4 {[%emt 0:00:30] [#]} (54... Rd2 $11 55. Bb6 (55. Rxa5 Bd4 $11) 55... Rxa2) 55. Rxa5 {[%emt 0:00:31]} (55. Bxa5 $2 Rd2 56. Rxf6 (56. g4 $2 Rxf2+ 57. Kg3 h5 $19) 56... Kxf6 $19) ({Better is} 55. Ke2 $1 $16 {[%cal Re2d1]} Rc1 56. Bxa5) 55... Rd2 $11 {[%emt 0:00:15][%csl Gd4][%cal Rd2f2]} 56. g4 {[%emt 0:00:23]} Rxf2+ {[%emt 0:00:22]} 57. Kg3 {[%emt 0:00:03]} h5 {[%emt 0:00:45]} 58. gxh5 {[%emt 0:00:19]} Nxh5+ {[%emt 0:00:06]} 59. Kg4 {[%emt 0:00:05]} Kh6 {[%emt 0:00:51]} 60. h4 {[%emt 0:01:10]} gxh4 {[%emt 0:00:41]} 61. Kxh4 {[%emt 0:00:34]} Rf3 $2 {[%emt 0:00:35][%mdl 8192]} (61... Bc3 $11) 62. Kg4 $2 {[%emt 0:00:40]} ({White has to play} 62. Be4 $18 Rf4+ 63. Bxf4+ Nxf4 64. Kg4) 62... Rf1 $14 {[%emt 0:00:23]} 63. Bd6 {[%emt 0:00:33]} Rg1+ {[%emt 0:00:39]} 64. Kf3 {[%emt 0:00:13]} Rf1+ {[%emt 0:00:26]} (64... Bc3 $16) 65. Ke4 {[%emt 0:00:34]} (65. Ke2 $18 Rf2+ 66. Kd3) 65... Bg7 {[%emt 0:00:20]} (65... Bc3 $11 {should be considered.}) 66. Bh3 {[%emt 0:00:50]} (66. Bc8 $16) 66... Re1+ {[%emt 0:00:37] [#]} (66... Rd1 $11 67. Bc5 Nf6+ 68. Ke3 Nd5+ 69. Ke2 Ra1) 67. Kf3 {[%emt 0:00:16]} (67. Kd5 $1 $16) 67... Rd1 {[%emt 0:00:24]} (67... Bc3 $1 $11 {keeps the balance.}) 68. Ra6 {[%emt 0:00:49]} ({Don't blunder} 68. Bxb4 $2 Rd3+ 69. Ke2 Nf4+ 70. Ke1 Nxh3 $19) (68. Bc5 $16 {And now Be3+ would win.} f5 69. Kf2 (69. Bxb4 $2 Rd3+ 70. Kf2 Rxh3 $19) (69. Bxf5 Rf1+ 70. Ke3 Rxf5 $15)) 68... Rd3+ $11 {[%emt 0:00:33]} 69. Kg2 {[%emt 0:00:10] Bf4+ is the strong threat.} Rd2+ {[%emt 0:00:29]} 70. Kf1 {[%emt 0:00:34]} Kg5 {[%emt 0:00:30]} 71. Bxb4 {[%emt 0:00:23]} Ng3+ {[%emt 0:00:36]} 72. Ke1 {[%emt 0:00:07]} Rh2 $1 {[%emt 0:00:35]} 73. Bc8 {[%emt 0:00:55]} Ne4 {[%emt 0:00:17] Prevents Bd2+.} 74. Bb7 {[%emt 0:00:47]} Nc3 {[%emt 0:00:14]} ({Black should play} 74... Kf4 $11) 75. Be7+ {[%emt 0:00:29]} (75. Ra5+ $14 Kg4 76. Kf1) 75... Kf5 {[%emt 0:00:32] The position is equal.} 76. Bc8+ {[%emt 0:00:31]} Ke4 {[%emt 0:00:03]} 77. Bb7+ {[%emt 0:00:18]} Kd3 {[%emt 0:00:28] Threatens to win with ...Re2+.} 78. Rd6+ {[%emt 0:00:43]} Kc2 {[%emt 0:00:24]} 79. Bg5 {[%emt 0:00:23]} Nxa2 {[%emt 0:00:48]} 80. Bd5 {[%emt 0:00:31]} Nc3 {[%emt 0:00:33] Strongly threatening ...Be5.} 81. Bxf7 {[%emt 0:00:39]} Rh1+ {[%emt 0:00:27]} 82. Kf2 {[%emt 0:00:03]} Ne4+ {[%emt 0:00:32]} 83. Kg2 {[%emt 0:00:02] Hoping for Rc6+.} Nxd6 {[%emt 0:00:54]} 84. Bg6+ {[%emt 0:00:08]} Kxb3 {[%emt 0:00:09]} 85. Kxh1 {[%emt 0:00:03] Weighted Error Value: White=0.16 (very precise) /Black=0.12 (very precise)} 1/2-1/2

[Event "26th Womens ECCC 2022"]
[Site "Mayrhofen"]
[Date "2022.10.08"]
[Round "6.12"]
[White "Majdan, Joanna"]
[Black "Toma, Katarzyna"]
[Result "1/2-1/2"]
[ECO "B31"]
[WhiteElo "2301"]
[BlackElo "2249"]
[Annotator "TA"]
[PlyCount "94"]
[EventDate "2022.10.03"]
[EventType "team-tourn"]
[EventCountry "AUT"]
[SourceTitle "playchess.com"]
[Source "ChessBase"]
[SourceQuality "1"]
[TimeControl "40/5400+30:1800+30"]

{[%evp 9,94,19,12,0,22,23,29,14,17,-15,-6,-14,-19,-94,-110,-79,-95,-73,-50,-65,8,7,0,17,51,0,18,0,37,-51,-67,-141,-147,-166,-168,-283,-252,-256,97,0,0,-228,-281,-265,-250,-263,-232,-230,-187,-189,-187,-188,-117,-102,-92,-83,-63,-72,-56,-63,-56,-72,-68,-130,-79,-94,-29,-29,-31,-41,-31,-44,-47,-937,-906,-811,-150,-156,0,0,0,0,0,0,0,-18,0]} 1. e4 {[%emt 0:00:03]} c5 {[%emt 0:00:05]} 2. Nf3 {[%emt 0:00:07]} Nc6 {[%emt 0:00:07]} 3. Bb5 {[%emt 0:00:06]} g6 {[%emt 0:00:06]} 4. Bxc6 {[%emt 0:00:06]} bxc6 {[%emt 0:00:31]} 5. d4 {[%emt 0:03:39]} Ba6 {[%emt 0:00:30]} 6. dxc5 {[%emt 0:01:32] B31: Sicilian: 2...Nc6 3 Bb5 g6.} Qa5+ {[%emt 0:05:05]} 7. Nbd2 {[%emt 0:00:48]} Bg7 {[%emt 0:03:20]} 8. a3 {[%emt 0:04:50] White has an edge.} (8. Rb1 $5 {[%cal Rb2b4]}) 8... Qxc5 {[%emt 0:09:35]} 9. b4 {[%emt 0:07:11] [#]} (9. c4 $5) 9... Qh5 $146 {[%emt 0:09:34]} (9... Qc3 $2 10. Rb1 $18) ({Predecessor:} 9... Qb6 10. Rb1 d5 11. b5 Bxb5 12. exd5 cxd5 13. c4 Qe6+ 14. Kf1 Bxc4+ 15. Nxc4 dxc4 {1-0 (35) Grischuk,A (2766)-Gschnitzer,A (2425) Chess.com INT 2019}) 10. Rb1 {[%emt 0:04:34]} d5 {[%emt 0:06:43] Against c4} 11. Bb2 {[%emt 0:02:48]} (11. exd5 $11 {remains equal.} Qxd5 12. c4 Bxc4 13. Nxc4 Qxc4 14. Qe2 Qxe2+ 15. Kxe2) 11... Bxb2 $1 $17 {[%emt 0:00:26]} ({Much worse is} 11... Nf6 $6 12. exd5 Qxd5 13. c4 Bxc4 14. Nxc4 Qxc4 15. Qe2 $11) 12. Rxb2 {[%emt 0:00:04]} dxe4 {[%emt 0:05:49]} 13. Nxe4 {[%emt 0:00:22]} Rd8 {[%emt 0:03:43] Inhibits Qd4.} 14. Qc1 {[%emt 0:01:19]} Qd5 {[%emt 0:10:39]} (14... Qg4 $15 15. Qe3 Qxg2) 15. Nc5 $11 {[%emt 0:03:49]} Bc4 $40 {[%emt 0:04:07][%mdl 128] Black attacks.} 16. c3 {[%emt 0:06:22] Black should prevent Rd2.} Rd6 {[%emt 0:01:07]} 17. Qd2 {[%emt 0:05:11]} (17. Rd2 $14 Re6+ 18. Kd1 (18. Nxe6 Qxe6+ 19. Kd1 Bb3+ 20. Rc2 Nf6 $11) 18... Bb3+ 19. Nxb3 Qxb3+ 20. Qc2 Qxa3 21. Ng5 (21. Qa2 Qxc3 22. Qxa7 Kf8 $15) 21... Qa1+ 22. Qc1 Qa4+ 23. Qc2 Qa1+ 24. Qc1 Qa4+ 25. Qc2 Qa1+) 17... Qf5 {[%emt 0:06:40]} 18. Nd4 {[%emt 0:06:45] Pair of Knights!} Qh5 {[%emt 0:05:39]} (18... Qd5 $5 {[%cal Rd5g2]} 19. f3 Nf6 $11) 19. f4 {[%emt 0:04:18]} (19. Ne4 $14 Rd7 20. Qe3) 19... Nf6 $1 $15 {[%emt 0:00:37]} 20. Nb7 {[%emt 0:06:00]} ({White should play} 20. Kf2 $15) 20... O-O $1 $17 {[%emt 0:06:17][%cal Oc6c5]} 21. Nxd6 {[%emt 0:04:57]} exd6 {[%emt 0:00:05]} 22. Nf3 {[%emt 0:03:22]} (22. Qd1 $142 Qh4+ 23. g3) 22... Re8+ $19 {[%emt 0:00:54]} 23. Kd1 {[%emt 0:00:07]} Qb5 $2 {[%emt 0:00:52] [#]} (23... Re2 $1 $19 {[%cal Re2d2]} 24. Qxe2 Bxe2+ 25. Rxe2 Qb5) 24. Re1 {[%emt 0:03:54]} (24. Kc1 $1 $16) 24... Ne4 $11 {[%emt 0:00:56] White must now prevent ...c5.} 25. Qd4 {[%emt 0:04:19]} (25. Qe3 $11 {and White is okay.}) 25... c5 $19 {[%emt 0:06:02]} 26. Qxe4 {[%emt 0:03:38]} Rxe4 {[%emt 0:00:16]} 27. Rxe4 {[%emt 0:00:04]} Bd5 {[%emt 0:01:39]} 28. Re3 {[%emt 0:01:45]} Qa4+ {[%emt 0:00:44]} 29. Ke1 {[%emt 0:01:45]} Qxa3 {[%emt 0:00:33]} 30. Rd2 {[%emt 0:00:46]} Qc1+ {[%emt 0:00:40]} (30... Bc4 $19 31. bxc5 dxc5) 31. Ke2 $17 {[%emt 0:00:19]} Bxf3+ {[%emt 0:03:37]} 32. Rxf3 {[%emt 0:02:00]} cxb4 {[%emt 0:00:20]} 33. cxb4 {[%emt 0:00:04][%mdl 4096] Endgame KQ-KRR} Qc4+ {[%emt 0:00:06]} 34. Kf2 {[%emt 0:04:01]} Qxb4 {[%emt 0:00:07]} 35. Ra2 {[%emt 0:00:45]} Qc4 {[%emt 0:02:51]} 36. Ra5 {[%emt 0:01:50]} (36. Rd2 $15) 36... d5 {[%emt 0:00:50]} (36... h5 $142 37. h3 Qc1) 37. Kg3 {[%emt 0:00:35]} Qe4 {[%emt 0:02:57]} ({Black should try} 37... a6 $17 38. h3 (38. Rfa3 $2 h5 $19) 38... h5) 38. Rxa7 $11 {[%emt 0:03:28]} Qe1+ {[%emt 0:00:43]} 39. Kh3 {[%emt 0:00:05]} h5 {[%emt 0:01:02]} 40. Ra8+ {[%emt 0:02:06]} Kg7 {[%emt 0:00:07]} 41. Rd8 $2 {[%emt 0:33:42][%mdl 8192]} (41. Ra4 $15) 41... Qe6+ $19 {[%emt 0:05:39]} 42. f5 {[%emt 0:00:00]} gxf5 $2 {[%emt 0:00:03]} (42... Qe4 $19 {[%csl Gh5][%cal Re4g4] is more deadly.} 43. f6+ Kh7) 43. Rf4 $17 {[%emt 0:00:00] [#]} Kf6 $2 {[%emt 0:01:38]} ({Better is} 43... Qb6 $1 $17 {[%cal Rb6d8]} 44. Ra8 d4) 44. g3 $11 {[%emt 0:00:00] The position is equal.} Kg7 {[%emt 0:06:22][%cal Oh5h4]} 45. Kg2 {[%emt 0:00:00]} Qe2+ {[%emt 0:00:18]} 46. Kh3 {[%emt 0:00:00]} Qe6 {[%emt 0:00:11]} 47. Kg2 {[%emt 0:00:00]} Qe2+ {[%emt 0:00:05] Weighted Error Value: White=0.41/Black=0.38} 1/2-1/2

[Event "26th Womens ECCC 2022"]
[Site "Mayrhofen"]
[Date "2022.10.08"]
[Round "6.13"]
[White "Buksa, Nataliya"]
[Black "Muzychuk, Mariya"]
[Result "1/2-1/2"]
[ECO "B15"]
[WhiteElo "2413"]
[BlackElo "2527"]
[Annotator "TA"]
[PlyCount "114"]
[EventDate "2022.10.03"]
[EventType "team-tourn"]
[EventCountry "AUT"]
[SourceTitle "playchess.com"]
[Source "ChessBase"]
[SourceQuality "1"]
[TimeControl "40/5400+30:1800+30"]

{[%evp 15,114,21,46,18,22,24,20,18,17,18,22,0,10,-12,-8,-8,-12,-5,0,-8,0,-12,-31,-31,0,0,0,0,0,0,0,0,0,0,15,0,9,6,43,43,41,43,43,43,43,43,49,27,53,9,79,77,152,147,236,257,251,251,253,258,258,257,257,247,227,116,116,87,72,89,760,721,636,8,8,8,8,0,0,0,8,8,8,8,8,8,8,8,8,8,8,0,0,0,0,0,0,0,8,8,8]} 1. e4 {[%emt 0:00:01]} c6 {[%emt 0:00:13]} 2. d4 {[%emt 0:00:05]} d5 {[%emt 0:00:04]} 3. Nc3 {[%emt 0:00:03]} dxe4 {[%emt 0:00:25]} 4. Nxe4 {[%emt 0:00:03]} Nf6 {[%emt 0:00:19]} 5. Nxf6+ {[%emt 0:00:05]} exf6 {[%emt 0:00:03]} 6. c3 {[%emt 0:00:03]} Bd6 {[%emt 0:00:18]} 7. Bd3 {[%emt 0:00:03]} O-O {[%emt 0:00:20]} 8. Ne2 {[%emt 0:00:03]} Re8 {[%emt 0:01:08]} 9. O-O {[%emt 0:00:05] B15: Caro-Kann: 3 Nc3: 3...g6 and 3...dxe4 4 Nxe4 Nf6 5 Nxf6+ exf6.} (9. Qc2 $5 {[%cal Rd3h7]}) 9... Nd7 {[%emt 0:01:43][%cal Bb8d7,Bd7f8,Bf8e6][%mdl 32]} 10. Bf4 {[%emt 0:00:06] The main line 10.Bf4 scores better than 10.Ng3.} Nf8 {[%emt 0:05:29]} 11. Qd2 {[%emt 0:00:31]} Ne6 {[%emt 0:02:03]} 12. Bxd6 {[%emt 0:23:41]} Qxd6 {[%emt 0:00:05] [#]} 13. b4 $146 {[%emt 0:02:11]} ({Predecessor:} 13. Rfe1 Bd7 14. Rad1 g6 15. Bc4 Rad8 16. Qe3 Kg7 17. Qg3 Qxg3 18. Nxg3 b6 19. Ne2 {½-½ (34) Kokarev,D (2608)-Oparin,G (2609) Linares 2018}) 13... Bd7 {[%emt 0:09:01]} 14. Rfe1 {[%emt 0:02:04]} a5 {[%emt 0:03:21]} 15. a3 {[%emt 0:00:40]} g6 {[%emt 0:03:21]} 16. h4 {[%emt 0:06:04]} h5 {[%emt 0:00:51]} 17. Qh6 {[%emt 0:05:41]} Qf8 {[%emt 0:12:56]} (17... b5 {looks sharper.} 18. bxa5 f5 19. a4 Rxa5 20. axb5 Rxa1 21. Rxa1 cxb5 22. Qd2 Bc6) 18. Qxf8+ {[%emt 0:10:46]} Kxf8 {[%emt 0:00:07]} 19. Reb1 {[%emt 0:00:19]} axb4 {[%emt 0:00:51]} 20. axb4 {[%emt 0:05:38]} Ke7 {[%emt 0:00:13]} 21. f3 {[%emt 0:08:49]} Kd6 {[%emt 0:03:13]} 22. Kf2 {[%emt 0:01:40]} Ng7 {[%emt 0:08:32]} 23. Ng3 {[%emt 0:06:19]} f5 {[%emt 0:01:07] Inhibits Ne4+.} 24. Ne2 {[%emt 0:00:05]} Ne6 {[%emt 0:00:47]} 25. g3 {[%emt 0:00:26]} b6 {[%emt 0:02:05]} 26. Bc4 {[%emt 0:02:45]} Reb8 {[%emt 0:05:16]} 27. Rd1 {[%emt 0:02:36]} Ke7 {[%emt 0:05:12]} 28. d5 {[%emt 0:01:19]} cxd5 {[%emt 0:02:54]} 29. Bxd5 {[%emt 0:00:06]} Rxa1 {[%emt 0:00:15]} 30. Rxa1 {[%emt 0:00:03]} Nc7 {[%emt 0:09:57]} 31. Bb3 {[%emt 0:00:33]} Be6 {[%emt 0:00:47]} 32. Nd4 {[%emt 0:02:41]} Kd6 {[%emt 0:04:53]} (32... Kf6 $11) 33. c4 $16 {[%emt 0:03:29][%cal Bc3c4,Bc4c5][%mdl 32] White is more active.} Rc8 {[%emt 0:03:05]} (33... Rb7 $142) 34. Ra7 {[%emt 0:02:07]} b5 {[%emt 0:11:12]} (34... Ke5 $16 35. Ke3 Kf6) 35. c5+ $18 {[%emt 0:07:44]} ({Weaker is} 35. cxb5 Bxb3 36. Nxb3 Rb8 $11) 35... Ke5 {[%emt 0:00:12]} 36. Bxe6 {[%emt 0:00:15]} fxe6 {[%emt 0:02:16][%mdl 4096] Endgame KRN-KRN} 37. Nc6+ {[%emt 0:00:13]} Kf6 {[%emt 0:00:03]} 38. f4 {[%emt 0:00:08][%cal Bf3f4,Bf4e5,Be5e6][%mdl 32] Against e5} Nd5 {[%emt 0:01:56]} 39. Ne5 {[%emt 0:00:06][%csl Ge5][%cal Ra7f7]} Rc7 {[%emt 0:00:09] [#] Prevents Rf7+.} 40. Rxc7 {[%emt 0:09:05]} (40. Ra5 $1 $18 {[%cal Ra5b5]}) 40... Nxc7 {[%emt 0:00:05] KN-KN} 41. Nc6 {[%emt 0:03:57] Black must now prevent Ke3.} Nd5 {[%emt 0:01:18][%cal Oe6e5] [#]} 42. Ke2 $1 {[%emt 0:05:58]} e5 $2 {[%emt 0:01:11][%mdl 8192]} (42... Kf7 $16) 43. fxe5+ {[%emt 0:01:49]} Ke6 {[%emt 0:00:04]} 44. Kf3 $2 {[%emt 0:00:39]} (44. Kd3 $18 {Strongly threatening Kd4.} Kd7 45. Na7 Nxb4+ 46. Kd4) 44... Kd7 $11 {[%emt 0:01:04] The position is equal.} 45. Nd4 {[%emt 0:10:20] Threatens to win with c6+.} Nxb4 {[%emt 0:00:16]} 46. e6+ {[%emt 0:10:15]} Ke7 {[%emt 0:00:56]} 47. Nxb5 {[%emt 0:00:47] aiming for Nd4.} Nd3 {[%emt 0:18:52]} 48. c6 {[%emt 0:00:53] White threatens c7 and mate.} Ne5+ {[%emt 0:00:14]} 49. Kf4 {[%emt 0:00:02]} Nxc6 {[%emt 0:00:11]} 50. Kg5 {[%emt 0:00:18]} Kxe6 {[%emt 0:00:28]} 51. Kxg6 {[%emt 0:00:16]} Ke5 {[%emt 0:00:15]} 52. Kxh5 {[%emt 0:00:41] Kg5 is the strong threat.} f4 {[%emt 0:00:33]} 53. gxf4+ {[%emt 0:01:50]} Kxf4 {[%emt 0:00:03]} 54. Nd6 {[%emt 0:00:15]} Ne7 {[%emt 0:00:30]} 55. Kh6 {[%emt 0:00:21]} Kg4 {[%emt 0:00:31]} 56. h5 {[%emt 0:00:03]} Ng8+ {[%emt 0:00:03]} 57. Kg6 {[%emt 0:00:02]} Ne7+ {[%emt 0:00:04] White really could win this.  Weighted Error Value: White=0.24 (precise) /Black=0.12 (very precise)} 1/2-1/2